fUST/lending_fUST_20240604
["ID","MTS","AMOUNT","RATE_DAILY","PERIOD"]
[328535137,1717503047549,-500.0,0.00021917,2]
[328535138,1717503047558,-529.14372585,0.00021917,2]
[328535139,1717503047568,-151.0,0.00021917,2]
[328535140,1717503047577,-151.0,0.00021917,2]
[328535141,1717503047586,-151.0,0.00021917,2]
[328535142,1717503047596,-500.0,0.00021917,2]
[328535143,1717503047605,-151.0,0.00021917,2]
[328535144,1717503047614,-151.0,0.00021917,2]
[328535145,1717503047624,-151.0,0.00021917,2]
[328535146,1717503047633,-151.0,0.00021917,2]
[328535147,1717503047642,-151.0,0.00021917,2]
[328535148,1717503047651,-151.0,0.00021917,2]
[328535149,1717503047660,-151.0,0.00021917,2]
[328535150,1717503047669,-276.78993,0.00021917,2]
[328535151,1717503047679,-500.0,0.00021917,2]
[328535152,1717503047688,-151.0,0.00021917,2]
[328535153,1717503047697,-151.0,0.00021917,2]
[328535154,1717503047707,-151.0,0.00021917,2]
[328535155,1717503047717,-151.0,0.00021917,2]
[328535156,1717503047727,-151.0,0.00021917,2]
[328535157,1717503047736,-151.0,0.00021917,2]
[328535158,1717503047746,-500.0,0.00021917,2]
[328535159,1717503047755,-500.0,0.00021917,2]
[328535160,1717503047768,-500.0,0.00021917,2]
[328535161,1717503047778,-500.0,0.00021917,2]
[328535162,1717503047788,-271.17690465,0.00021917,2]
[328535163,1717503047798,-500.0,0.00021917,2]
[328535164,1717503047807,-509.52260428,0.00021917,2]
[328535165,1717503047816,-500.0,0.00021917,2]
[328535166,1717503047826,-500.0,0.00021917,2]
[328535167,1717503047836,-1383.64,0.00021917,2]
[328535168,1717503047845,-559.81561346,0.00021917,2]
[328535169,1717503047854,-500.0,0.00021917,2]
[328535170,1717503047863,-151.0,0.00021917,2]
[328535171,1717503047872,-158.288148,0.00021917,2]
[328535172,1717503047881,-392.68432361,0.00021917,2]
[328535173,1717503047890,-500.0,0.00021917,2]
[328535174,1717503047899,-500.0,0.00021917,2]
[328535175,1717503047908,-245.4416393,0.00021917,2]
[328535176,1717503047917,-500.0,0.00021917,2]
[328535177,1717503047926,-1311.22,0.00021917,2]
[328535178,1717503047935,-500.0,0.00021917,2]
[328535179,1717503047944,-509.79,0.00021917,2]
[328535180,1717503047954,-500.0,0.00021917,2]
[328535181,1717503047963,-500.0,0.00021917,2]
[328535182,1717503047973,-500.0,0.00021917,2]
[328535183,1717503047982,-500.0,0.00021917,2]
[328535184,1717503047991,-543.56,0.00021917,2]
[328535185,1717503048000,-500.0,0.00021917,2]
[328535186,1717503048009,-471.389379,0.00021917,2]
[328535187,1717503048018,-471.389379,0.00021917,2]
[328535188,1717503048032,-471.389379,0.00021917,2]
[328535189,1717503048042,-108.191025,0.00021917,2]
[328535190,1717503183119,154.95351395,9.999e-05,2]
[328535194,1717503948804,515.13028145,9.999e-05,2]
[328535195,1717503991283,523.93203178,9.999e-05,2]
[328535196,1717503995967,691.90816563,9.999e-05,2]
[328535197,1717504048162,-154.9690062,0.000165,2]
[328535216,1717504231871,-275.36212988,0.00018828,2]
[328535217,1717504231881,-374.89938528,0.00018829,2]
[328535218,1717504231951,-6471.0646053,0.00018829,2]
[328535238,1717504237892,-3771.56529281,0.00018829,2]
[328535239,1717504237904,-1298.19586907,0.00018829,2]
[328535240,1717504237916,-2172.9195391,0.00018829,2]
[328535241,1717504237930,-1989.08275627,0.00018829,2]
[328535242,1717504237943,-999.76791309,0.00018829,2]
[328535248,1717504241299,-7822.50463908,0.00018829,2]
[328535249,1717504241308,-566.29787045,0.000189,2]
[328535250,1717504241320,-358.84532169,0.000189,2]
[328535251,1717504241331,-474.76298006,0.000189,2]
[328535252,1717504241341,-162.93661136,0.00019611,2]
[328535253,1717504241351,-190.02965484,0.00019612,2]
[328535254,1717504241360,-923.99735714,0.00019714,2]
[328535255,1717504241370,-209.63614663,0.000199,2]
[328535256,1717504241379,-760.64684976,0.0002,7]
[328535257,1717504241392,-28242.91450726,0.0002,7]
[328535258,1717504241401,-1434.78227944,0.0002,2]
[328535259,1717504241411,-1907.50986872,0.0002045,2]
[328535260,1717504241421,-153.0,0.00020678,2]
[328535261,1717504241431,-153.0,0.00020778,2]
[328535262,1717504241440,-195.1,0.00020794,3]
[328535263,1717504241449,-153.0,0.00021178,2]
[328535264,1717504241462,-153.0,0.00021178,2]
[328535265,1717504241471,-153.0,0.00021178,2]
[328535266,1717504241480,-209.63614659,0.00021186,2]
[328535267,1717504241489,-195.1,0.00021335,5]
[328535268,1717504241499,-620.81242993,0.00021364,2]
[328535269,1717504241508,-150.0,0.00021433,2]
[328535270,1717504241518,-4234.71341694,0.00021811,2]
[328535271,1717504241527,-195.1,0.00021875,5]
[328535272,1717504241536,-270.0,0.000219,2]
[328535273,1717504241545,-500.0,0.00021914,2]
[328535274,1717504241555,-412.24280293,0.00021914,2]
[328535275,1717504241572,-304.13941976,0.00021915,2]
[328535276,1717504241586,-156.54227334,0.00021915,2]
[328535277,1717504241595,-154.98450155,0.00021915,2]
[328535278,1717504241605,-275.41755216,0.00021915,2]
[328535279,1717504241615,-691.28568206,0.00021915,2]
[328535280,1717504241625,-1269.45637468,0.00021915,2]
[328535281,1717504241634,-9483.49243494,0.00021916,2]
[328535282,1717504241644,-2078.19613181,0.00021916,2]
[328535283,1717504241723,-1694.50977724,0.00021916,2]
[328535284,1717504241732,-1053.16163465,0.00021917,7]
[328535285,1717504241747,-3550.32582923,0.00021917,7]
[328535286,1717504241756,-500.0,0.00021917,2]
[328535287,1717504241766,-500.0,0.00021917,2]
[328535288,1717504241775,-500.0,0.00021917,2]
[328535289,1717504241785,-500.0,0.00021917,2]
[328535290,1717504241795,-167.22594915,0.00021917,2]
[328535291,1717504241806,-500.0,0.00021917,2]
[328535292,1717504241815,-309.29677034,0.00021917,2]
[328535293,1717504241824,-500.0,0.00021917,2]
[328535294,1717504241834,-500.0,0.00021917,2]
[328535295,1717504241843,-500.0,0.00021917,2]
[328535296,1717504241852,-434.85688956,0.00021917,2]
[328535297,1717504241862,-500.0,0.00021917,2]
[328535298,1717504241871,-500.0,0.00021917,2]
[328535299,1717504241881,-500.0,0.00021917,2]
[328535300,1717504241891,-500.0,0.00021917,2]
[328535301,1717504241900,-500.0,0.00021917,2]
[328535302,1717504241910,-500.0,0.00021917,2]
[328535303,1717504241919,-500.0,0.00021917,2]
[328535304,1717504241928,-500.0,0.00021917,2]
[328535305,1717504241938,-500.0,0.00021917,2]
[328535306,1717504241947,-500.0,0.00021917,2]
[328535307,1717504241956,-500.0,0.00021917,2]
[328535308,1717504241967,-500.0,0.00021917,2]
[328535309,1717504241977,-500.0,0.00021917,2]
[328535310,1717504241986,-587.32,0.00021917,2]
[328535311,1717504241996,-552.17,0.00021917,2]
[328535312,1717504242005,-500.0,0.00021917,2]
[328535313,1717504242014,-363.95263959,0.00021917,2]
[328535314,1717504242024,-500.0,0.00021917,2]
[328535315,1717504242033,-500.0,0.00021917,2]
[328535316,1717504242043,-500.0,0.00021917,2]
[328535317,1717504242052,-500.0,0.00021917,2]
[328535318,1717504242062,-475.22109579,0.00021917,2]
[328535319,1717504242077,-24.77890421,0.00021917,2]
[328535320,1717504242086,-500.0,0.00021917,2]
[328535321,1717504242095,-500.0,0.00021917,2]
[328535322,1717504242105,-500.0,0.00021917,2]
[328535323,1717504242114,-500.0,0.00021917,2]
[328535324,1717504242123,-500.0,0.00021917,2]
[328535325,1717504242132,-500.0,0.00021917,2]
[328535326,1717504242141,-500.0,0.00021917,2]
[328535327,1717504242150,-500.0,0.00021917,2]
[328535328,1717504242159,-500.0,0.00021917,2]
[328535329,1717504242168,-323.71,0.00021917,2]
[328535330,1717504242177,-521.48,0.00021917,2]
[328535331,1717504242187,-500.0,0.00021917,2]
[328535332,1717504242196,-500.0,0.00021917,2]
[328535333,1717504242205,-500.0,0.00021917,2]
[328535334,1717504242214,-500.0,0.00021917,2]
[328535335,1717504242223,-500.0,0.00021917,2]
[328535336,1717504242233,-500.0,0.00021917,2]
[328535337,1717504242242,-500.0,0.00021917,2]
[328535338,1717504242252,-598.79,0.00021917,2]
[328535339,1717504242261,-562.23491687,0.00021917,2]
[328535340,1717504242421,-500.0,0.00021917,2]
[328535341,1717504242431,-500.0,0.00021917,2]
[328535342,1717504242441,-500.0,0.00021917,2]
[328535343,1717504242451,-500.0,0.00021917,2]
[328535344,1717504242464,-500.0,0.00021917,2]
[328535345,1717504242473,-546.34,0.00021917,2]
[328535346,1717504242483,-500.0,0.00021917,2]
[328535347,1717504242493,-500.0,0.00021917,2]
[328535348,1717504242503,-500.0,0.00021917,2]
[328535349,1717504242513,-500.0,0.00021917,2]
[328535350,1717504242522,-500.0,0.00021917,2]
[328535351,1717504242532,-500.0,0.00021917,2]
[328535352,1717504242542,-500.0,0.00021917,2]
[328535353,1717504242554,-502.07950303,0.00021917,2]
[328535354,1717504242564,-500.0,0.00021917,2]
[328535356,1717504242573,-500.0,0.00021917,2]
[328535357,1717504242583,-500.0,0.00021917,2]
[328535358,1717504242593,-579.8720736,0.00021917,2]
[328535359,1717504242602,-500.0,0.00021917,2]
[328535360,1717504242611,-500.0,0.00021917,2]
[328535361,1717504242621,-500.0,0.00021917,2]
[328535362,1717504242631,-550.3,0.00021917,2]
[328535363,1717504242640,-500.0,0.00021917,2]
[328535364,1717504242649,-500.0,0.00021917,2]
[328535365,1717504242658,-500.0,0.00021917,2]
[328535366,1717504242667,-500.0,0.00021917,2]
[328535367,1717504242675,-500.0,0.00021917,2]
[328535368,1717504242685,-500.0,0.00021917,2]
[328535369,1717504242694,-500.0,0.00021917,2]
[328535370,1717504242703,-500.0,0.00021917,2]
[328535371,1717504242712,-500.0,0.00021917,2]
[328535372,1717504242721,-1325.99,0.00021917,2]
[328535373,1717504242730,-500.0,0.00021917,2]
[328535374,1717504242740,-500.0,0.00021917,2]
[328535375,1717504242750,-564.77,0.00021917,2]
[328535376,1717504242760,-500.0,0.00021917,2]
[328535377,1717504242770,-500.0,0.00021917,2]
[328535378,1717504242779,-500.0,0.00021917,2]
[328535379,1717504242789,-500.0,0.00021917,2]
[328535380,1717504242798,-500.0,0.00021917,2]
[328535381,1717504242809,-214.71863226,0.00021917,2]
[328535382,1717504242818,-500.0,0.00021917,2]
[328535383,1717504242827,-500.0,0.00021917,2]
[328535384,1717504242836,-140.60052331,0.00021917,2]
[328535435,1717504245898,-393.1358817,0.00021915,2]
[328535437,1717504245908,-359.39947669,0.00021917,2]
[328535439,1717504245917,-500.0,0.00021917,2]
[328535440,1717504245926,-1256.59,0.00021917,2]
[328535441,1717504245935,-500.0,0.00021917,2]
[328535442,1717504245945,-500.0,0.00021917,2]
[328535443,1717504245954,-500.0,0.00021917,2]
[328535444,1717504245963,-4420.11,0.00021917,2]
[328535445,1717504245972,-502.12182272,0.00021917,2]
[328535446,1717504245980,-1444.18,0.00021917,2]
[328535447,1717504245990,-504.44,0.00021917,2]
[328535448,1717504245998,-624.57,0.00021917,2]
[328535449,1717504246007,-500.0,0.00021917,2]
[328535450,1717504246017,-576.39,0.00021917,2]
[328535451,1717504246026,-500.0,0.00021917,2]
[328535452,1717504246036,-500.0,0.00021917,2]
[328535453,1717504246045,-500.0,0.00021917,2]
[328535454,1717504246054,-305.93400056,0.00021917,2]
[328535455,1717504246064,-500.0,0.00021917,2]
[328535456,1717504246073,-500.0,0.00021917,2]
[328535457,1717504246082,-500.0,0.00021917,2]
[328535458,1717504246092,-500.0,0.00021917,2]
[328535459,1717504246101,-500.0,0.00021917,2]
[328535460,1717504246110,-500.0,0.00021917,2]
[328535461,1717504246119,-500.0,0.00021917,2]
[328535462,1717504246128,-500.0,0.00021917,2]
[328535463,1717504246137,-500.0,0.00021917,2]
[328535464,1717504246146,-500.0,0.00021917,2]
[328535465,1717504246155,-371.82444221,0.00021917,2]
[328535466,1717504246164,-500.0,0.00021917,2]
[328535467,1717504246174,-500.0,0.00021917,2]
[328535468,1717504246183,-500.0,0.00021917,2]
[328535469,1717504246192,-159.576731,0.00021917,2]
[328535470,1717504246202,-805.25,0.00021917,2]
[328535471,1717504246211,-500.0,0.00021917,2]
[328535472,1717504246220,-3036.57232089,0.00021917,2]
[328535473,1717504260503,154.95351395,9.999e-05,2]
[328535474,1717504288051,303.01600666,9.999e-05,2]
[328535475,1717504314299,154.95351395,9.999e-05,2]
[328535476,1717504318771,158.91065437,9.999e-05,2]
[328535479,1717504331455,721.70560726,9.999e-05,2]
[328535480,1717504340195,945.01502129,0.00015,2]
[328535481,1717504345018,926.63597867,9.999e-05,2]
[328535482,1717504352742,282.22872112,9.999e-05,2]
[328535483,1717504366395,284.32396407,0.000137,2]
[328535484,1717504383130,551.95683803,9.999e-05,2]
[328535485,1717504388406,164.49289543,9.999e-05,2]
[328535486,1717504401062,156.79013596,9.999e-05,2]
[328535487,1717504403937,181.85934055,9.999e-05,2]
[328535488,1717504439292,837.44661928,9.999e-05,2]
[328535489,1717504466004,685.80898577,9.999e-05,2]
[328535490,1717504469356,456.49760352,9.999e-05,2]
[328535491,1717504501209,529.79177973,9.999e-05,2]
[328535494,1717504926213,154.95351395,9.999e-05,2]
[328535495,1717504942294,305.3780539,9.999e-05,2]
[328535496,1717505055515,515.13028145,9.999e-05,2]
[328535498,1717505106050,1902.27689005,9.999e-05,2]
[328535499,1717505166846,3935.71518143,0.0002011,11]
[328535505,1717505310747,156.79013596,9.999e-05,2]
[328535512,1717505354883,282.22872112,9.999e-05,2]
[328535520,1717505426195,155.00231545,0.000115,2]
[328535521,1717505426637,155.00231545,0.000115,2]
[328535522,1717505427076,155.00231545,0.000115,2]
[328535523,1717505427597,721.70560726,9.999e-05,2]
[328535524,1717505428132,155.00231545,0.000115,2]
[328535525,1717505428186,181.85934055,9.999e-05,2]
[328535526,1717505429321,155.00231,0.000115,2]
[328535558,1717505432046,-1904.43006571,0.00017665,2]
[328535560,1717505432055,-154.95351395,0.00017666,2]
[328535562,1717505432065,-258.9209,0.00017667,2]
[328535563,1717505432074,-24900.0,0.00017774,2]
[328535565,1717505432083,-1208.5718464,0.0001779,2]
[328535567,1717505432092,-2052.7513719,0.00018157,2]
[328535568,1717505432102,-176.79413525,0.00018229,2]
[328535569,1717505432111,-606.06312262,0.00018729,2]
[328535570,1717505432119,-342.4616855,0.0001873,2]
[328535571,1717505432129,-933.27078146,0.000189,2]
[328535572,1717505432138,-150.54021813,0.00019,2]
[328535573,1717505432147,-162.93661136,0.00019751,2]
[328535574,1717505432156,-176.79413525,0.00019752,2]
[328535575,1717505432166,-22997.40466117,0.00019999,2]
[328535576,1717505432176,-3628.36529927,0.0002,2]
[328535577,1717505432185,-7955.03193286,0.0002,2]
[328535578,1717505432195,-528.58427928,0.00020328,4]
[328535579,1717505432206,-173.210988,0.0002043,2]
[328535580,1717505432215,-5728.0757,0.00021,5]
[328535581,1717505432227,-176.79413525,0.00021275,2]
[328535582,1717505432237,-151.0,0.00021314,5]
[328535583,1717505432247,-151.0,0.00021856,5]
[328535584,1717505432256,-4234.71341694,0.00021859,2]
[328535585,1717505432265,-527.44803133,0.00021915,2]
[328535586,1717505432276,-2761.76093806,0.00021915,2]
[328535587,1717505432286,-207.1380716,0.00021915,10]
[328535588,1717505432296,-305.27885032,0.00021915,2]
[328535589,1717505432307,-154.95351395,0.00021915,2]
[328535590,1717505432316,-601.73672114,0.00021915,2]
[328535591,1717505432327,-1127.51757744,0.00021915,2]
[328535592,1717505432337,-156.63120106,0.00021915,2]
[328535593,1717505432347,-281.65560224,0.00021915,2]
[328535594,1717505432356,-466.7978106,0.00021916,2]
[328535595,1717505432366,-427.13170236,0.00021916,2]
[328535596,1717505432376,-170.54778907,0.00021916,2]
[328535597,1717505432385,-500.0,0.00021916,2]
[328535598,1717505432395,-352.71240175,0.00021916,2]
[328535599,1717505432404,-554.31615898,0.00021916,2]
[328535600,1717505432413,-500.0,0.00021916,2]
[328535601,1717505432423,-374.00948039,0.00021916,2]
[328535602,1717505432433,-500.0,0.00021916,2]
[328535603,1717505432443,-426.05072816,0.00021916,2]
[328535604,1717505432454,-12094.67979793,0.00021917,7]
[328535605,1717505432464,-500.0,0.00021917,2]
[328535606,1717505432473,-500.0,0.00021917,2]
[328535607,1717505432482,-500.0,0.00021917,2]
[328535608,1717505432491,-500.0,0.00021917,2]
[328535609,1717505432501,-500.0,0.00021917,2]
[328535610,1717505432510,-500.0,0.00021917,2]
[328535611,1717505432520,-500.0,0.00021917,2]
[328535612,1717505432531,-500.0,0.00021917,2]
[328535613,1717505432541,-500.0,0.00021917,2]
[328535614,1717505432552,-500.0,0.00021917,2]
[328535615,1717505432563,-500.0,0.00021917,2]
[328535616,1717505432572,-500.0,0.00021917,2]
[328535617,1717505432581,-500.0,0.00021917,2]
[328535618,1717505432590,-505.16107681,0.00021917,2]
[328535619,1717505432599,-500.0,0.00021917,2]
[328535620,1717505432608,-360.53754612,0.00021917,2]
[328535621,1717505432618,-493.9708446,0.00021917,2]
[328535640,1717505438086,-4458.3397796,0.00021917,7]
[328535641,1717505438097,-727.60084849,0.00021917,7]
[328535642,1717505438106,-9.81476092,0.00021917,2]
[328535644,1717505438115,-260.28514867,0.00021917,2]
[328535646,1717505438129,-241.5315927,0.00021917,2]
[328535648,1717505438138,-488.8289708,0.00021917,2]
[328535649,1717505438147,-500.0,0.00021917,2]
[328535650,1717505438156,-500.0,0.00021917,2]
[328535651,1717505438166,-42.83416711,0.00021917,2]
[328535665,1717505441398,-581.62404873,0.00021916,2]
[328535666,1717505441408,-301.37264787,0.00021916,2]
[328535667,1717505441417,-278.08277314,0.00021916,2]
[328535668,1717505441427,-457.16583289,0.00021917,2]
[328535669,1717505441436,-500.0,0.00021917,2]
[328535670,1717505441445,-500.0,0.00021917,2]
[328535671,1717505441454,-500.0,0.00021917,2]
[328535672,1717505441464,-500.0,0.00021917,2]
[328535673,1717505441474,-500.0,0.00021917,2]
[328535674,1717505441483,-500.0,0.00021917,2]
[328535675,1717505441492,-500.0,0.00021917,2]
[328535676,1717505441509,-500.0,0.00021917,2]
[328535677,1717505441523,-500.0,0.00021917,2]
[328535678,1717505441533,-218.39474157,0.00021917,2]
[328535727,1717505443319,-281.60525843,0.00021917,2]
[328535729,1717505443329,-504.67304856,0.00021917,2]
[328535731,1717505443338,-501.62569163,0.00021917,2]
[328535733,1717505443347,-500.0,0.00021917,2]
[328535735,1717505443356,-580.91594452,0.00021917,2]
[328535737,1717505443367,-500.0,0.00021917,2]
[328535739,1717505443376,-503.54556447,0.00021917,2]
[328535741,1717505443385,-500.0,0.00021917,2]
[328535743,1717505443395,-490.26718629,0.00021917,2]
[328535745,1717505443403,-500.0,0.00021917,2]
[328535747,1717505443412,-509.47440859,0.00021917,2]
[328535749,1717505443422,-500.0,0.00021917,2]
[328535751,1717505443431,-500.0,0.00021917,2]
[328535753,1717505443440,-501.80493155,0.00021917,2]
[328535755,1717505443449,-500.0,0.00021917,2]
[328535757,1717505443459,-508.25312115,0.00021917,2]
[328535759,1717505443468,-250.0,0.00021917,2]
[328535761,1717505443477,-500.80071715,0.00021917,2]
[328535763,1717505443488,-500.0,0.00021917,2]
[328535765,1717505443497,-500.0,0.00021917,2]
[328535767,1717505443507,-506.8503882,0.00021917,2]
[328535768,1717505443516,-505.83302534,0.00021917,2]
[328535770,1717505443526,-505.69274832,0.00021917,2]
[328535772,1717505443535,-500.0,0.00021917,2]
[328535774,1717505443545,-503.33495162,0.00021917,2]
[328535775,1717505443554,-500.0,0.00021917,2]
[328535777,1717505443563,-504.11614555,0.00021917,2]
[328535779,1717505443573,-500.0,0.00021917,2]
[328535781,1717505443583,-507.97558312,0.00021917,2]
[328535783,1717505443593,-500.0,0.00021917,2]
[328535785,1717505443603,-500.0,0.00021917,2]
[328535786,1717505443612,-500.0,0.00021917,2]
[328535788,1717505443620,-504.80355456,0.00021917,2]
[328535790,1717505443630,-500.0,0.00021917,2]
[328535792,1717505443639,-500.0,0.00021917,2]
[328535794,1717505443649,-500.0,0.00021917,2]
[328535796,1717505443657,-500.0,0.00021917,2]
[328535798,1717505443667,-500.0,0.00021917,2]
[328535800,1717505443676,-500.0,0.00021917,2]
[328535801,1717505443686,-500.0,0.00021917,2]
[328535803,1717505443695,-500.0,0.00021917,2]
[328535805,1717505443704,-500.0,0.00021917,2]
[328535807,1717505443714,-506.73378985,0.00021917,2]
[328535809,1717505443723,-500.0,0.00021917,2]
[328535811,1717505443733,-500.0,0.00021917,2]
[328535812,1717505443742,-500.0,0.00021917,2]
[328535814,1717505443751,-500.0,0.00021917,2]
[328535816,1717505443761,-500.0,0.00021917,2]
[328535818,1717505443770,-537.32,0.00021917,2]
[328535820,1717505443781,-500.0,0.00021917,2]
[328535822,1717505443791,-500.0,0.00021917,2]
[328535824,1717505443800,-500.0,0.00021917,2]
[328535825,1717505443810,-500.0,0.00021917,2]
[328535827,1717505443821,-500.0,0.00021917,2]
[328535829,1717505443833,-625.18,0.00021917,2]
[328535831,1717505443843,-500.0,0.00021917,2]
[328535833,1717505443853,-500.0,0.00021917,2]
[328535835,1717505443863,-500.0,0.00021917,2]
[328535837,1717505443872,-500.0,0.00021917,2]
[328535839,1717505443881,-457.659492,0.00021917,2]
[328535840,1717505443890,-500.0,0.00021917,2]
[328535842,1717505443901,-500.0,0.00021917,2]
[328535844,1717505443910,-500.0,0.00021917,2]
[328535846,1717505443920,-500.0,0.00021917,2]
[328535848,1717505443932,-500.0,0.00021917,2]
[328535850,1717505443943,-500.0,0.00021917,2]
[328535852,1717505443952,-500.0,0.00021917,2]
[328535854,1717505443962,-150.0,0.00021917,2]
[328535856,1717505443971,-500.0,0.00021917,2]
[328535858,1717505443980,-613.23,0.00021917,2]
[328535860,1717505443990,-500.0,0.00021917,2]
[328535862,1717505443999,-500.0,0.00021917,2]
[328535864,1717505444008,-500.0,0.00021917,2]
[328535865,1717505444017,-500.0,0.00021917,2]
[328535881,1717505444173,-502.98,0.00021917,2]
[328535883,1717505444183,-288.08197032,0.00021917,2]
[328535885,1717505444193,-500.0,0.00021917,2]
[328535887,1717505444202,-500.0,0.00021917,2]
[328535889,1717505444211,-500.0,0.00021917,2]
[328535891,1717505444220,-151.0,0.00021917,2]
[328535893,1717505444230,-151.0,0.00021917,2]
[328535894,1717505444239,-151.0,0.00021917,2]
[328535896,1717505444248,-163.641531,0.00021917,2]
[328535898,1717505444257,-500.0,0.00021917,2]
[328535900,1717505444266,-500.0,0.00021917,2]
[328535902,1717505444275,-500.0,0.00021917,2]
[328535904,1717505444285,-509.96336863,0.00021917,2]
[328535906,1717505444294,-500.0,0.00021917,2]
[328535908,1717505444303,-500.0,0.00021917,2]
[328535910,1717505444312,-863.51,0.00021917,2]
[328535911,1717505444320,-631.29,0.00021917,2]
[328535913,1717505444331,-500.0,0.00021917,2]
[328535915,1717505444340,-500.0,0.00021917,2]
[328535917,1717505444349,-500.0,0.00021917,2]
[328535919,1717505444358,-151.0,0.00021917,2]
[328535921,1717505444366,-151.0,0.00021917,2]
[328535923,1717505444375,-151.0,0.00021917,2]
[328535925,1717505444384,-500.0,0.00021917,2]
[328535927,1717505444393,-541.24,0.00021917,2]
[328535928,1717505444403,-500.0,0.00021917,2]
[328535930,1717505444411,-500.0,0.00021917,2]
[328535932,1717505444420,-500.0,0.00021917,2]
[328535934,1717505444430,-1344.94,0.00021917,2]
[328535936,1717505444439,-500.0,0.00021917,2]
[328535938,1717505444448,-500.0,0.00021917,2]
[328535940,1717505444457,-500.0,0.00021917,2]
[328535942,1717505444467,-500.0,0.00021917,2]
[328535944,1717505444476,-500.0,0.00021917,2]
[328535946,1717505444485,-500.0,0.00021917,2]
[328535947,1717505444494,-500.0,0.00021917,2]
[328535949,1717505444503,-4803.79,0.00021917,2]
[328535951,1717505444513,-611.61,0.00021917,2]
[328535953,1717505444522,-500.0,0.00021917,2]
[328535955,1717505444531,-1540.48,0.00021917,2]
[328535957,1717505444540,-500.0,0.00021917,2]
[328535958,1717505444550,-500.0,0.00021917,2]
[328535960,1717505444559,-398.78615454,0.00021917,2]
[328535962,1717505444568,-318.59640092,0.00021917,2]
[328535964,1717505444577,-608.42,0.00021917,2]
[328535966,1717505444587,-542.51373649,0.00021917,2]
[328535968,1717505444596,-500.0,0.00021917,2]
[328535970,1717505444606,-629.46,0.00021917,2]
[328535972,1717505444616,-500.0,0.00021917,2]
[328535974,1717505444625,-500.0,0.00021917,2]
[328535976,1717505444634,-500.0,0.00021917,2]
[328535978,1717505444644,-500.0,0.00021917,2]
[328535980,1717505444653,-638.8,0.00021917,2]
[328535982,1717505444662,-500.0,0.00021917,2]
[328535984,1717505444671,-508.92,0.00021917,2]
[328535986,1717505444680,-500.0,0.00021917,2]
[328535988,1717505444689,-531.63,0.00021917,2]
[328535989,1717505444698,-500.0,0.00021917,2]
[328535991,1717505444706,-560.94686212,0.00021917,2]
[328535993,1717505444716,-500.0,0.00021917,2]
[328535995,1717505444725,-283.01174262,0.00021917,2]
[328535997,1717505444734,-170.42,0.00021917,2]
[328535999,1717505444743,-500.0,0.00021917,2]
[328536001,1717505444752,-500.0,0.00021917,2]
[328536003,1717505444761,-500.0,0.00021917,2]
[328536005,1717505444771,-500.0,0.00021917,2]
[328536007,1717505444780,-771.7,0.00021917,2]
[328536008,1717505444789,-500.0,0.00021917,2]
[328536010,1717505444798,-500.0,0.00021917,2]
[328536012,1717505444807,-500.0,0.00021917,2]
[328536014,1717505444817,-500.0,0.00021917,2]
[328536016,1717505444830,-500.0,0.00021917,2]
[328536018,1717505444839,-500.0,0.00021917,2]
[328536020,1717505444849,-500.0,0.00021917,2]